fUST/lending_fUST_20250803
["ID","MTS","AMOUNT","RATE_DAILY","PERIOD"]
[376908569,1754159455158,-435.25573852,0.00026973,2]
[376908571,1754159455168,-1741.02295408,0.00026973,2]
[376908573,1754159455178,-3917.30164668,0.00026973,2]
[376908575,1754159455187,-4874.23062813,0.00026973,2]
[376908577,1754159455197,-1651.574512,0.00026995,7]
[376908579,1754159455206,-1651.574512,0.00026995,7]
[376908580,1754159455216,-333.616439,0.00026995,7]
[376908583,1754159455226,-333.616439,0.00026995,7]
[376908584,1754159455236,-500.0,0.00026995,10]
[376908587,1754159455246,-500.0,0.00026999,10]
[376908588,1754159455255,-500.0,0.00026999,10]
[376908590,1754159455263,-500.0,0.00026999,10]
[376908592,1754159455272,-500.0,0.00026999,10]
[376908594,1754159455282,-500.0,0.00026999,10]
[376908596,1754159455291,-460.0,0.00027,2]
[376908598,1754159455301,-623.29240534,0.00027,4]
[376908600,1754159455310,-344209.96253549,0.00027,2]
[376908603,1754159455327,-990.0,0.00027,2]
[376908605,1754159455342,-3035.74238958,0.00027,2]
[376908608,1754159455354,-2904.31997382,0.00027,2]
[376908610,1754159455365,-1419.99297972,0.00027,2]
[376908613,1754159455386,-460.0,0.00026849,10]
[376908615,1754159455395,-289.8638399,0.00026849,10]
[376908617,1754159455407,-171.39081049,0.00026849,10]
[376908619,1754159455417,-6137.81676091,0.00027,2]
[376908621,1754159455429,-912.7891722,0.00027,2]
[376908624,1754159455440,-1827.5229,0.00027,2]
[376908626,1754159455450,-9828.18217414,0.00027,2]
[376908634,1754159455516,-460.0,0.00026849,10]
[376908636,1754159455525,-460.0,0.00026849,10]
[376908638,1754159455536,-320.72,0.00026849,10]
[376908640,1754159455545,-516.23,0.00026849,10]
[376908642,1754159455554,-206.60029,0.00026995,7]
[376908644,1754159455564,-54286.44971,0.00027,2]
[376908646,1754159455576,-10547.46668558,0.00027,2]
[376908648,1754159455589,-4425.90706608,0.00027,2]
[376908651,1754159455600,-536.7569256,0.00027,2]
[376908659,1754159455670,-19691.73591561,0.00027,2]
[376908661,1754159455682,-128869.60230025,0.00027,2]
[376908663,1754159455693,-11333.70000641,0.00027,2]
[376908672,1754159455762,-9017.79119805,0.00027,2]
[376908674,1754159455773,-284.25924302,0.00027,2]
[376908677,1754159455790,-18868.30691059,0.00027,2]
[376908680,1754159455808,-23564.0,0.00027,2]
[376908683,1754159455825,-1329.62684757,0.00027,2]
[376909381,1754159889351,184.7348811,0.00022844,2]
[376909382,1754160058442,1673.61718126,0.00022147,2]
[376909385,1754160259629,167.654053,0.00013699,2]
[376909386,1754160358680,-2114.34124308,0.00023315,2]
[376909387,1754160390098,-171.02640984,0.00023315,2]
[376909389,1754160433082,-1621.33164589,0.00023315,2]
[376909390,1754160516491,3230.53290163,0.00023061,2]
[376909425,1754160631834,-202.73513054,0.00023788,2]
[376909427,1754160631843,-359.42831289,0.00023895,2]
[376909432,1754160631942,-140.57168711,0.00023895,2]
[376909433,1754160631953,-241.67438,0.00024601,2]
[376909435,1754160631962,-666.0,0.0002484,2]
[376909437,1754160631972,-150.0,0.000249,2]
[376909439,1754160631981,-167.654053,0.00024907,2]
[376909441,1754160631990,-290.842,0.00025524,10]
[376909442,1754160631999,-176.0,0.00025524,2]
[376909444,1754160632008,-249.47084405,0.00025524,2]
[376909447,1754160632020,-950.52915595,0.00025524,2]
[376909449,1754160632029,-300.0,0.00025524,2]
[376909451,1754160632038,-8713.33117385,0.00025525,2]
[376909453,1754160632049,-16186.66882615,0.00025525,2]
[376909455,1754160632059,-151.0,0.00025559,6]
[376909457,1754160632068,-151.0,0.00025769,6]
[376909459,1754160632079,-151.0,0.0002598,6]
[376909461,1754160632088,-500.0,0.00026087,2]
[376909463,1754160632097,-177.23097932,0.00026189,2]
[376909465,1754160632106,-151.0,0.0002619,6]
[376909467,1754160632115,-151.0,0.00026401,7]
[376909469,1754160632124,-178.28110486,0.00026512,2]
[376909471,1754160632133,-151.0,0.00026612,7]
[376909473,1754160632143,-3361.50177941,0.00026749,2]
[376909475,1754160632152,-200.0,0.00026801,15]
[376909477,1754160632162,-300.0,0.00026801,15]
[376909478,1754160632171,-151.0,0.00026822,7]
[376909480,1754160632181,-274.56,0.00026839,3]
[376909482,1754160632190,-823.72,0.00026839,3]
[376909484,1754160632199,-5033.53731027,0.00026848,2]
[376909485,1754160632211,-706.44758526,0.00026848,2]
[376909486,1754160632222,-1068.5,0.00026848,2]
[376909487,1754160632235,-435.26876724,0.00026848,2]
[376909780,1754160637832,-150.0,0.00024748,2]
[376909781,1754160637842,-634.10633723,0.00026848,2]
[376909782,1754160637851,-500.0,0.00026848,2]
[376909783,1754160637861,-291.42714132,0.00026848,2]
[376909784,1754160637874,-500.0,0.00026848,2]
[376909785,1754160637884,-500.0,0.00026848,2]
[376909786,1754160637893,-500.0,0.00026848,2]
[376909787,1754160637902,-500.0,0.00026848,2]
[376909788,1754160637912,-500.0,0.00026848,2]
[376909789,1754160637921,-630.9909903,0.00026848,2]
[376909790,1754160637931,-500.0,0.00026848,2]
[376909791,1754160637941,-500.0,0.00026848,2]
[376909792,1754160637951,-500.0,0.00026848,2]
[376909793,1754160637961,-500.0,0.00026848,2]
[376909794,1754160637970,-500.0,0.00026848,2]
[376909795,1754160637979,-256.046647,0.00026849,7]
[376909796,1754160637988,-460.0,0.00026849,10]
[376909797,1754160637998,-256.046647,0.00026849,7]
[376909798,1754160638008,-461.03232639,0.00026849,10]
[376909799,1754160638017,-458.49847527,0.00026849,10]
[376909800,1754160638027,-151.414299,0.00026849,7]
[376909801,1754160638036,-460.0,0.00026849,10]
[376909802,1754160638046,-460.0,0.00026849,10]
[376909803,1754160638055,-460.0,0.00026849,10]
[376909804,1754160638065,-492.57397995,0.00026849,10]
[376909805,1754160638074,-460.0,0.00026849,10]
[376909806,1754160638086,-460.0,0.00026849,10]
[376909807,1754160638095,-460.0,0.00026849,10]
[376909808,1754160638104,-460.0,0.00026849,10]
[376909809,1754160638114,-460.0,0.00026849,10]
[376909810,1754160638123,-460.0,0.00026849,10]
[376909811,1754160638132,-460.0,0.00026849,10]
[376909812,1754160638141,-470.324961,0.00026849,7]
[376909813,1754160638150,-470.324961,0.00026849,7]
[376909814,1754160638160,-470.324961,0.00026849,7]
[376909815,1754160638169,-470.324961,0.00026849,7]
[376909816,1754160638179,-460.0,0.00026849,10]
[376909817,1754160638189,-460.0,0.00026849,10]
[376909818,1754160638198,-460.0,0.00026849,10]
[376909819,1754160638207,-460.0,0.00026849,10]
[376909820,1754160638217,-460.0,0.00026849,10]
[376909821,1754160638226,-460.0,0.00026849,10]
[376909822,1754160638236,-460.0,0.00026849,10]
[376909823,1754160638245,-201.86858639,0.00026849,10]
[376909826,1754160638254,-460.0,0.00026849,10]
[376909828,1754160638264,-461.85894651,0.00026849,10]
[376909830,1754160638274,-460.0,0.00026849,10]
[376909832,1754160638283,-511.96738933,0.00026849,10]
[376909834,1754160638292,-460.65091598,0.00026849,10]
[376909836,1754160638302,-391.60465994,0.00026849,10]
[376909838,1754160638311,-460.0,0.00026849,10]
[376909839,1754160638320,-460.0,0.00026849,10]
[376909840,1754160638331,-460.0,0.00026849,10]
[376909841,1754160638340,-460.0,0.00026849,10]
[376909842,1754160638350,-460.0,0.00026849,10]
[376909843,1754160638359,-460.0,0.00026849,10]
[376909844,1754160638368,-222.90721325,0.00026849,10]
[376909845,1754160638378,-460.0,0.00026849,10]
[376909846,1754160638387,-460.0,0.00026849,10]
[376909847,1754160638396,-460.0,0.00026849,10]
[376909848,1754160638405,-460.0,0.00026849,10]
[376909849,1754160638415,-460.0,0.00026849,10]
[376909850,1754160638424,-460.0,0.00026849,10]
[376909851,1754160638433,-460.0,0.00026849,10]
[376909852,1754160638442,-460.0,0.00026849,10]
[376909853,1754160638452,-460.0,0.00026849,10]
[376909854,1754160638461,-460.0,0.00026849,10]
[376909855,1754160638471,-465.53137373,0.00026849,10]
[376909856,1754160638480,-460.0,0.00026849,10]
[376909857,1754160638489,-460.0,0.00026849,10]
[376909858,1754160638499,-460.0,0.00026849,10]
[376909859,1754160638508,-460.0,0.00026849,10]
[376909860,1754160638517,-460.0,0.00026849,10]
[376909861,1754160638526,-460.0,0.00026849,10]
[376909862,1754160638536,-460.0,0.00026849,10]
[376909864,1754160638545,-460.0,0.00026849,10]
[376909866,1754160638554,-471.0545858,0.00026849,10]
[376909868,1754160638563,-430.46088077,0.00026849,10]
[376909870,1754160638572,-460.0,0.00026849,10]
[376909872,1754160638581,-460.0,0.00026849,10]
[376909873,1754160638590,-460.0,0.00026849,10]
[376909875,1754160638599,-460.0,0.00026849,10]
[376909877,1754160638608,-352.6072872,0.00026849,10]
[376909879,1754160638617,-460.56007321,0.00026849,10]
[376909881,1754160638627,-460.0,0.00026849,10]
[376909883,1754160638636,-460.0,0.00026849,10]
[376909885,1754160638645,-460.0,0.00026849,10]
[376909887,1754160638654,-460.0,0.00026849,10]
[376909889,1754160638663,-465.88027359,0.00026849,10]
[376909891,1754160638672,-460.0,0.00026849,10]
[376909892,1754160638682,-460.0,0.00026849,10]
[376909894,1754160638691,-460.0,0.00026849,10]
[376909896,1754160638700,-460.0,0.00026849,10]
[376909897,1754160638709,-460.0,0.00026849,10]
[376909898,1754160638718,-460.0,0.00026849,10]
[376909899,1754160638728,-460.0,0.00026849,10]
[376909900,1754160638737,-460.0,0.00026849,10]
[376909901,1754160638756,-460.0,0.00026849,10]
[376909903,1754160638767,-460.0,0.00026849,10]
[376909905,1754160638776,-151.0,0.00026849,10]
[376909907,1754160638786,-460.0,0.00026849,10]
[376909909,1754160638796,-500.0,0.00026849,10]
[376909911,1754160638805,-313.79036537,0.00026849,10]
[376909913,1754160638814,-460.0,0.00026849,10]
[376909914,1754160638824,-460.0,0.00026849,10]
[376909916,1754160638835,-460.0,0.00026849,10]
[376909918,1754160638845,-460.0,0.00026849,10]
[376909920,1754160638854,-460.0,0.00026849,10]
[376909922,1754160638864,-460.0,0.00026849,10]
[376909924,1754160638878,-294.42,0.00026849,10]
[376909926,1754160638888,-460.0,0.00026849,10]
[376909928,1754160638898,-460.0,0.00026849,10]
[376909930,1754160638908,-460.0,0.00026849,10]
[376909932,1754160638918,-460.0,0.00026849,10]
[376909934,1754160638927,-458.71964263,0.00026849,10]
[376909936,1754160638937,-460.0,0.00026849,10]
[376909938,1754160638947,-460.0,0.00026849,10]
[376909940,1754160638957,-460.0,0.00026849,10]
[376909942,1754160638967,-460.0,0.00026849,10]
[376909944,1754160638976,-460.0,0.00026849,10]
[376909946,1754160638985,-460.0,0.00026849,10]
[376909948,1754160638994,-265.34,0.00026849,10]
[376909950,1754160639004,-460.0,0.00026849,10]
[376909952,1754160639014,-460.0,0.00026849,10]
[376909953,1754160639023,-460.0,0.00026849,10]
[376909955,1754160639033,-460.0,0.00026849,10]
[376909957,1754160639042,-538.93370907,0.00026849,10]
[376909959,1754160639051,-460.0,0.00026849,10]
[376909961,1754160639061,-555.4,0.00026849,10]
[376909963,1754160639070,-460.0,0.00026849,10]
[376909965,1754160639080,-460.0,0.00026849,10]
[376909967,1754160639089,-460.0,0.00026849,10]
[376909969,1754160639099,-500.0,0.00026849,10]
[376909971,1754160639108,-500.0,0.00026849,10]
[376909973,1754160639117,-500.0,0.00026849,10]
[376909975,1754160639126,-500.0,0.00026849,10]
[376909977,1754160639136,-500.0,0.00026849,10]
[376909986,1754160639315,-500.0,0.00026849,10]
[376909988,1754160639329,-500.0,0.00026849,10]
[376909990,1754160639339,-500.0,0.00026849,10]
[376909992,1754160639348,-500.0,0.00026849,10]
[376909994,1754160639358,-497.56181249,0.00026849,10]
[376909997,1754160639368,-500.0,0.00026849,10]
[376909998,1754160639379,-460.0,0.00026849,10]
[376909999,1754160639389,-460.0,0.00026849,10]
[376910001,1754160639398,-460.0,0.00026849,10]
[376910003,1754160639407,-460.0,0.00026849,10]
[376910005,1754160639416,-460.0,0.00026849,10]
[376910006,1754160639426,-460.0,0.00026849,10]
[376910007,1754160639436,-460.0,0.00026849,10]
[376910008,1754160639446,-460.0,0.00026849,10]
[376910009,1754160639455,-460.0,0.00026849,10]
[376910010,1754160639464,-460.0,0.00026849,10]
[376910011,1754160639473,-460.0,0.00026849,10]
[376910012,1754160639483,-460.0,0.00026849,10]
[376910013,1754160639492,-460.0,0.00026849,10]
[376910014,1754160639502,-460.0,0.00026849,10]
[376910015,1754160639511,-460.0,0.00026849,10]
[376910016,1754160639520,-460.0,0.00026849,10]
[376910017,1754160639530,-292.83700197,0.00026849,10]
[376910018,1754160639539,-460.0,0.00026849,10]
[376910019,1754160639548,-460.0,0.00026849,10]
[376910020,1754160639557,-460.0,0.00026849,10]
[376910021,1754160639567,-560.26897087,0.00026849,10]
[376910022,1754160639576,-460.0,0.00026849,10]
[376910023,1754160639590,-460.0,0.00026849,10]
[376910024,1754160639600,-460.0,0.00026849,10]
[376910025,1754160639609,-460.0,0.00026849,10]
[376910026,1754160639619,-153.4,0.00026849,10]
[376910027,1754160639627,-461.69249712,0.00026849,10]
[376910028,1754160639637,-460.0,0.00026849,10]
[376910029,1754160639646,-460.0,0.00026849,10]
[376910030,1754160639655,-237.83,0.00026849,10]
[376910031,1754160639664,-460.0,0.00026849,10]
[376910032,1754160639674,-460.0,0.00026849,10]
[376910033,1754160639683,-461.04615974,0.00026849,10]
[376910034,1754160639692,-460.0,0.00026849,10]
[376910035,1754160639702,-460.0,0.00026849,10]
[376910036,1754160639711,-460.0,0.00026849,10]
[376910037,1754160639720,-460.0,0.00026849,10]
[376910038,1754160639729,-460.0,0.00026849,10]
[376910039,1754160639738,-460.0,0.00026849,10]
[376910041,1754160639747,-460.0,0.00026849,10]
[376910042,1754160639757,-460.0,0.00026849,10]
[376910043,1754160639766,-466.09411442,0.00026849,10]
[376910045,1754160639775,-460.0,0.00026849,10]
[376910046,1754160639784,-460.0,0.00026849,10]
[376910047,1754160639793,-460.0,0.00026849,10]
[376910048,1754160639802,-460.0,0.00026849,10]
[376910050,1754160639812,-460.0,0.00026849,10]
[376910053,1754160639821,-460.0,0.00026849,10]
[376910055,1754160639837,-464.93695159,0.00026849,10]
[376910057,1754160639846,-460.0,0.00026849,10]
[376910058,1754160639856,-460.0,0.00026849,10]
[376910061,1754160639867,-401.59149574,0.00026849,10]
[376910062,1754160639878,-460.0,0.00026849,10]
[376910064,1754160639887,-460.0,0.00026849,10]
[376910066,1754160639897,-460.0,0.00026849,10]
[376910068,1754160639907,-462.00088567,0.00026849,10]
[376910070,1754160639918,-460.0,0.00026849,10]
[376910072,1754160639927,-207.55419325,0.00026849,10]
[376910074,1754160639936,-460.0,0.00026849,10]
[376910076,1754160639946,-460.0,0.00026849,10]
[376910078,1754160639955,-460.0,0.00026849,10]
[376910080,1754160639965,-462.03460803,0.00026849,10]
[376910082,1754160639974,-460.0,0.00026849,10]
[376910084,1754160639985,-460.0,0.00026849,10]
[376910086,1754160639994,-460.0,0.00026849,10]
[376910088,1754160640003,-460.0,0.00026849,10]
[376910090,1754160640013,-460.0,0.00026849,10]
[376910092,1754160640022,-460.0,0.00026849,10]
[376910094,1754160640031,-460.0,0.00026849,10]
[376910096,1754160640041,-460.0,0.00026849,10]
[376910098,1754160640050,-460.0,0.00026849,10]
[376910100,1754160640059,-460.0,0.00026849,10]
[376910102,1754160640068,-158.62398829,0.00026849,10]
[376910105,1754160640078,-460.0,0.00026849,10]
[376910107,1754160640089,-460.0,0.00026849,10]
[376910109,1754160640099,-460.0,0.00026849,10]
[376910111,1754160640109,-460.0,0.00026849,10]
[376910113,1754160640119,-151.0,0.00026849,10]
[376910115,1754160640128,-591.04,0.00026849,10]
[376910117,1754160640137,-166.14288307,0.00026849,10]
[376910119,1754160640146,-463.68592687,0.00026849,10]
[376910121,1754160640155,-460.0,0.00026849,10]
[376910123,1754160640164,-460.0,0.00026849,10]
[376910125,1754160640174,-460.0,0.00026849,10]
[376910127,1754160640183,-460.0,0.00026849,10]
[376910129,1754160640192,-460.0,0.00026849,10]
[376910131,1754160640201,-460.0,0.00026849,10]
[376910133,1754160640210,-460.0,0.00026849,10]
[376910135,1754160640219,-412.79142189,0.00026849,10]
[376910137,1754160640229,-460.0,0.00026849,10]
[376910139,1754160640239,-460.0,0.00026849,10]
[376910141,1754160640249,-460.0,0.00026849,10]
[376910142,1754160640259,-460.0,0.00026849,10]
[376910145,1754160640268,-460.0,0.00026849,10]
[376910147,1754160640277,-460.0,0.00026849,10]
[376910149,1754160640286,-460.0,0.00026849,10]
[376910151,1754160640296,-460.0,0.00026849,10]
[376910153,1754160640305,-460.0,0.00026849,10]
[376910154,1754160640314,-460.0,0.00026849,10]
[376910156,1754160640323,-460.0,0.00026849,10]
[376910158,1754160640334,-462.56795253,0.00026849,10]
[376910160,1754160640344,-460.0,0.00026849,10]
[376910162,1754160640352,-460.0,0.00026849,10]
[376910164,1754160640362,-598.76301085,0.00026849,10]
[376910166,1754160640371,-460.0,0.00026849,10]
[376910168,1754160640381,-327.79391488,0.00026849,10]
[376910170,1754160640391,-460.0,0.00026849,10]
[376910172,1754160640401,-1000.0,0.00026849,10]
[376910174,1754160640410,-460.0,0.00026849,10]
[376910176,1754160640419,-460.0,0.00026849,10]
[376910178,1754160640428,-460.0,0.00026849,10]
[376910180,1754160640437,-460.0,0.00026849,10]
[376910182,1754160640446,-460.0,0.00026849,10]
[376910184,1754160640455,-460.0,0.00026849,10]
[376910186,1754160640465,-460.0,0.00026849,10]
[376910188,1754160640474,-461.89312114,0.00026849,10]
[376910190,1754160640483,-460.0,0.00026849,10]
[376910192,1754160640495,-460.0,0.00026849,10]
[376910194,1754160640505,-460.0,0.00026849,10]
[376910196,1754160640514,-460.0,0.00026849,10]
[376910198,1754160640523,-460.0,0.00026849,10]
[376910200,1754160640532,-460.0,0.00026849,10]
[376910202,1754160640542,-526.38056783,0.00026849,10]
[376910204,1754160640552,-460.0,0.00026849,10]
[376910206,1754160640564,-460.0,0.00026849,10]
[376910207,1754160640573,-460.0,0.00026849,10]
[376910209,1754160640587,-460.0,0.00026849,10]
[376910211,1754160640597,-460.0,0.00026849,10]
[376910213,1754160640607,-256.98136951,0.00026849,10]
[376910215,1754160640618,-460.0,0.00026849,10]
[376910217,1754160640628,-500.0,0.00026849,2]
[376910219,1754160640638,-460.0,0.00026849,10]
[376910221,1754160640648,-460.0,0.00026849,10]
[376910223,1754160640657,-460.0,0.00026849,10]
[376910225,1754160640666,-266.97004519,0.00026849,10]
[376910227,1754160640675,-460.0,0.00026849,10]
[376910229,1754160640684,-460.0,0.00026849,10]
[376910231,1754160640693,-460.0,0.00026849,10]
[376910233,1754160640703,-460.0,0.00026849,10]
[376910235,1754160640711,-198.21964236,0.00026849,10]
[376910237,1754160640724,-460.0,0.00026849,10]
[376910239,1754160640733,-463.28299137,0.00026849,10]
[376910241,1754160640742,-590.81,0.00026849,10]
[376910243,1754160640751,-473.3713306,0.00026849,10]
[376910245,1754160640761,-460.0,0.00026849,10]
[376910247,1754160640770,-460.0,0.00026849,10]
[376910249,1754160640780,-303.46,0.00026849,10]
[376910251,1754160640789,-460.0,0.00026849,10]
[376910253,1754160640798,-384.35,0.00026849,10]
[376910255,1754160640808,-460.0,0.00026849,10]
[376910257,1754160640817,-460.0,0.00026849,10]
[376910259,1754160640828,-460.69116769,0.00026849,10]
[376910261,1754160640840,-460.0,0.00026849,10]
[376910263,1754160640849,-460.0,0.00026849,10]
[376910265,1754160640860,-460.0,0.00026849,10]
[376910267,1754160640874,-460.0,0.00026849,10]
[376910269,1754160640886,-467.33189132,0.00026849,10]
[376910271,1754160640897,-460.0,0.00026849,10]
[376910273,1754160640906,-460.0,0.00026849,10]
[376910275,1754160640918,-460.0,0.00026849,10]
[376910277,1754160640927,-460.0,0.00026849,10]
[376910279,1754160640937,-460.0,0.00026849,10]
[376910281,1754160640948,-460.0,0.00026849,10]
[376910283,1754160640958,-472.39,0.00026849,10]
[376910285,1754160640967,-472.39,0.00026849,10]
[376910287,1754160640976,-472.39,0.00026849,10]
[376910290,1754160640985,-472.39,0.00026849,10]
[376910292,1754160640994,-472.39,0.00026849,10]
[376910293,1754160641003,-472.39,0.00026849,10]
[376910296,1754160641013,-472.39,0.00026849,10]
[376910298,1754160641023,-472.39,0.00026849,10]
[376910300,1754160641032,-472.39,0.00026849,10]
[376910302,1754160641041,-472.39,0.00026849,10]
[376910304,1754160641051,-472.39,0.00026849,10]
[376910306,1754160641060,-460.0,0.00026849,10]
[376910308,1754160641069,-472.39,0.00026849,10]
[376910310,1754160641078,-472.39,0.00026849,10]
[376910311,1754160641090,-472.39,0.00026849,10]
[376910313,1754160641099,-472.39,0.00026849,10]
[376910316,1754160641109,-489.76,0.00026849,10]
[376910318,1754160641118,-460.0,0.00026849,10]
[376910319,1754160641127,-460.0,0.00026849,10]
[376910321,1754160641137,-520.42451428,0.00026849,10]
[376910323,1754160641146,-460.0,0.00026849,10]
[376910325,1754160641156,-460.0,0.00026849,10]
[376910327,1754160641166,-460.0,0.00026849,10]
[376910329,1754160641176,-460.0,0.00026849,10]
[376910331,1754160641185,-460.0,0.00026849,10]
[376910333,1754160641195,-460.0,0.00026849,10]
[376910335,1754160641204,-460.0,0.00026849,10]
[376910338,1754160641213,-460.0,0.00026849,10]
[376910340,1754160641223,-460.0,0.00026849,10]
[376910342,1754160641232,-460.0,0.00026849,10]
[376910344,1754160641241,-460.0,0.00026849,10]
[376910345,1754160641250,-460.0,0.00026849,10]
[376910346,1754160641259,-460.0,0.00026849,10]
[376910347,1754160641268,-460.0,0.00026849,10]
[376910348,1754160641277,-460.0,0.00026849,10]
[376910349,1754160641287,-460.0,0.00026849,10]
[376910350,1754160641296,-312.16666667,0.00026849,10]
[376910352,1754160641305,-460.0,0.00026849,10]
[376910354,1754160641314,-460.0,0.00026849,10]
[376910356,1754160641323,-460.0,0.00026849,10]
[376910358,1754160641335,-460.0,0.00026849,10]
[376910360,1754160641345,-460.0,0.00026849,10]
[376910362,1754160641354,-460.0,0.00026849,10]
[376910364,1754160641364,-460.0,0.00026849,10]
[376910366,1754160641373,-460.0,0.00026849,10]
[376910368,1754160641382,-236.46206706,0.00026873,2]
[376910370,1754160641391,-500.0,0.00026873,2]
[376910372,1754160641400,-500.0,0.00026873,2]
[376910374,1754160641409,-460.0,0.00026899,10]
[376910376,1754160641419,-460.0,0.00026899,10]
[376910378,1754160641428,-1058.27196974,0.000269,2]
[376910380,1754160641437,-3224.1557997,0.000269,2]
[376910382,1754160641447,-1460.85756117,0.000269,2]
[376910384,1754160641456,-160.0,0.00026941,2]
[376910386,1754160641465,-472.39,0.00026972,10]
[376910388,1754160641476,-500.0,0.00026973,2]
[376910390,1754160641485,-202.99210443,0.00026973,2]
[376910392,1754160641494,-500.0,0.00026973,2]
[376910394,1754160641504,-200.0,0.0002699,3]
[376910396,1754160641513,-200.0,0.0002699,4]
[376910398,1754160641522,-206.60029,0.00026995,7]
[376910400,1754160641533,-517.819622,0.00026995,7]
[376910402,1754160641542,-517.819622,0.00026995,7]
[376910404,1754160641552,-151.0,0.00026995,7]
[376910406,1754160641561,-423.43719274,0.00026999,2]
[376910408,1754160641570,-460.0,0.00026999,10]
[376910410,1754160641580,-460.0,0.00026999,10]
[376910412,1754160641590,-460.0,0.00026999,10]
[376910414,1754160641600,-460.0,0.00026999,10]
[376910416,1754160641609,-460.0,0.00026999,10]
[376910418,1754160641618,-472.39,0.00026999,10]
[376910420,1754160641627,-472.39,0.00026999,10]
[376910422,1754160641636,-472.39,0.00026999,10]
[376910424,1754160641646,-472.39,0.00026999,10]
[376910426,1754160641655,-472.39,0.00026999,10]
[376910428,1754160641664,-472.39,0.00026999,10]
[376910430,1754160641674,-472.39,0.00026999,10]
[376910432,1754160641683,-472.55538432,0.00026999,10]
[376910434,1754160641693,-560.32,0.00026999,10]
[376910436,1754160641703,-697.47319231,0.00027,2]
[376910438,1754160641714,-46769.92150703,0.00027,2]
[376910447,1754160641795,-968.55808915,0.00027,2]
[376910450,1754160641806,-1960.35704635,0.00027,2]
[376910480,1754160642098,-3759.33554397,0.00027,2]
[376910481,1754160642110,-453761.41611888,0.00027,2]
[376910482,1754160642119,-10564.31,0.00027,14]
[376910483,1754160642130,-84018.9714293,0.00027,2]
[376910484,1754160642147,-2108.04188579,0.00027,2]
[376910485,1754160642158,-2917.55836871,0.00027,2]
[376910486,1754160642169,-4664.85279325,0.00027,2]
[376910487,1754160642217,-460.0,0.00026849,3]
[376910488,1754160642226,-460.0,0.00026849,10]
[376910489,1754160642236,-460.0,0.00026849,10]
[376910490,1754160642245,-460.0,0.00026849,10]
[376910491,1754160642254,-460.0,0.00026849,10]
[376910492,1754160642264,-460.0,0.00026849,10]
[376910493,1754160642273,-50.53648626,0.00026849,10]
[376910494,1754160642284,-409.46351374,0.00026849,10]
[376910495,1754160642293,-460.0,0.00026849,10]
[376910497,1754160642303,-2055.37876835,0.00027,2]
[376910498,1754160642314,-22846.79680271,0.00027,2]
[376910499,1754160642326,-8391.21055922,0.00027,2]
[376910500,1754160642339,-676.73432524,0.00027,2]
[376910514,1754160642886,-460.0,0.00026849,10]
[376910516,1754160642895,-460.0,0.00026849,10]
[376910518,1754160642904,-460.0,0.00026849,10]
[376910520,1754160642914,-460.0,0.00026849,10]
[376910522,1754160642923,-528.73000002,0.00027,2]
[376910526,1754160642955,-364.67283318,0.00027,2]